[Event "GER-chT Youth Countries 2018"]
[Site "Wurzburg"]
[Date "2018.10.05"]
[Round "4"]
[White "Krastev, Alexander"]
[Black "Knuedel, Torben"]
[Result "0-1"]
[ECO "C54"]
[WhiteElo "2298"]
[BlackElo "2135"]
[Annotator "NA"]
[PlyCount "82"]
[EventDate "2018.10.03"]
[EventType "team-tourn"]
[EventCountry "GER"]
[SourceTitle "playchess.com"]
[Source "ChessBase"]
[SourceQuality "1"]
[TimeControl "40/5400+30:1800+30"]

1. e4 {[%emt 0:00:00]} e5 {[%emt 0:00:00]} 2. Nf3 {[%emt 0:00:00]} Nc6 {[%emt 0:00:00]} 3. Bc4 {[%emt 0:00:00]} Bc5 {[%emt 0:00:06]} 4. c3 {[%emt 0:00:00]} Nf6 {[%emt 0:00:04]} 5. d3 {[%emt 0:00:00]} a6 {[%emt 0:00:32]} 6. Bb3 {[%emt 0:00:24]} Ba7 {[%emt 0:00:20]} 7. Nbd2 {[%emt 0:01:33]} O-O {[%emt 0:01:20]} 8. O-O {[%emt 0:04:02]} d6 {[%emt 0:01:08]} 9. h3 {[%emt 0:01:59]} h6 {[%emt 0:01:10]} 10. Re1 {[%emt 0:00:17]} Nh5 {[%emt 0:01:24]} 11. Nf1 {[%emt 0:02:06]} Qf6 $11 {[%emt 0:00:40] LiveBook: 283 Games} 12. Be3 {[%emt 0:07:02]} Bxe3 {[%emt 0:00:14]} 13. Rxe3 {[%emt 0:00:32]} Nf4 {[%emt 0:05:53]} 14. N3h2 {[%emt 0:07:22]} Ne7 {[%emt 0:15:11]} 15. d4 {[%emt 0:20:09]} Neg6 {[%emt 0:01:39]} 16. Ng4 {[%emt 0:03:19]} Qh4 {[%emt 0:11:11]} 17. Ng3 {[%emt 0:06:13]} Nxg2 {[%emt 0:05:43]} 18. Nf5 {[%emt 0:02:55]} Bxf5 {[%emt 0:04:47]} 19. Kxg2 {[%emt 0:00:13]} Nf4+ {[%emt 0:01:14]} 20. Kf1 {[%emt 0:00:03]} Bxg4 {[%emt 0:18:08]} 21. Qxg4 {[%emt 0:00:09]} Qxg4 {[%emt 0:00:05]} 22. hxg4 {[%emt 0:00:04]} Rae8 {[%emt 0:01:25]} 23. f3 {[%emt 0:01:06]} g6 {[%emt 0:01:03]} 24. Kf2 {[%emt 0:01:56]} Kg7 {[%emt 0:00:10]} 25. Kg3 {[%emt 0:00:39]} f6 {[%emt 0:04:35]} 26. Ba4 {[%emt 0:02:35]} Rd8 {[%emt 0:02:21]} 27. b4 {[%emt 0:01:52]} Rh8 {[%emt 0:01:52]} 28. Rh1 {[%emt 0:02:19]} h5 {[%emt 0:01:21]} 29. Ree1 {[%emt 0:00:19]} hxg4 {[%emt 0:01:45]} 30. Kxg4 {[%emt 0:00:12]} Rxh1 {[%emt 0:03:12]} 31. Rxh1 {[%emt 0:00:05]} Ne2 {[%emt 0:00:30]} 32. dxe5 dxe5 {[%emt 0:00:44]} 33. c4 {[%emt 0:02:17]} Nf4 {[%emt 0:02:10]} 34. Rd1 {[%emt 0:00:51]} Rxd1 {[%emt 0:00:14]} 35. Bxd1 {[%emt 0:00:04]} Nd3 {[%emt 0:00:04]} 36. Ba4 {[%emt 0:01:19]} Nxb4 {[%emt 0:00:11]} 37. Bd7 {[%emt 0:00:04]} Nxa2 {[%emt 0:01:18]} 38. Bc8 {[%emt 0:00:03]} b5 {[%emt 0:01:33]} 39. Bxa6 {[%emt 0:00:04]} b4 {[%emt 0:00:20]} 40. c5 {[%emt 0:00:41]} b3 {[%emt 0:00:14]} 41. Bc4 {[%emt 0:30:05]} Nc1 {[%emt 0:30:04]} 0-1

[Event "GER-chT Youth Countries 2018"]
[Site "Wurzburg"]
[Date "2018.10.05"]
[Round "4"]
[White "Polster, Christian"]
[Black "Neukirchner, Pascal"]
[Result "1/2-1/2"]
[ECO "B35"]
[WhiteElo "2294"]
[BlackElo "2294"]
[Annotator "NA"]
[PlyCount "63"]
[EventDate "2018.10.03"]
[EventType "team-tourn"]
[EventCountry "GER"]
[SourceTitle "playchess.com"]
[Source "ChessBase"]
[SourceQuality "1"]
[TimeControl "40/5400+30:1800+30"]

1. e4 {[%emt 0:00:00]} c5 {[%emt 0:00:00]} 2. Nf3 {[%emt 0:00:00]} g6 {[%emt 0:00:00]} 3. d4 {[%emt 0:00:00]} cxd4 {[%emt 0:00:00]} 4. Nxd4 {[%emt 0:00:00]} Bg7 {[%emt 0:00:00]} 5. Nc3 {[%emt 0:00:12]} Nc6 {[%emt 0:00:00]} 6. Be3 {[%emt 0:00:11]} Nf6 {[%emt 0:00:00]} 7. Bc4 {[%emt 0:00:37]} O-O {[%emt 0:00:00]} 8. Bb3 {[%emt 0:00:14]} Re8 {[%emt 0:00:01]} 9. f3 {[%emt 0:00:41]} e6 {[%emt 0:00:14]} 10. f4 {[%emt 0:00:53] LiveBook: 16 Games} Ng4 {[%emt 0:00:31]} 11. Qxg4 {[%emt 0:01:37]} Nxd4 {[%emt 0:00:06]} 12. O-O-O {[%emt 0:00:47]} Nxb3+ {[%emt 0:00:07]} 13. axb3 {[%emt 0:00:29]} Bxc3 {[%emt 0:00:16]} 14. bxc3 $11 {[%emt 0:00:34]} a5 {[%emt 0:00:03]} 15. h4 {[%emt 0:20:19]} Qe7 {[%emt 0:16:49]} 16. Qg5 {[%emt 0:06:56]} d5 {[%emt 0:07:14]} 17. Qxe7 {[%emt 0:03:18]} Rxe7 {[%emt 0:00:09]} 18. e5 {[%emt 0:00:29]} a4 {[%emt 0:05:28]} 19. Kb2 {[%emt 0:00:50]} Rc7 {[%emt 0:06:11]} 20. Bd4 {[%emt 0:01:14]} Bd7 {[%emt 0:04:36]} 21. g4 {[%emt 0:02:38]} Bb5 {[%emt 0:04:55]} 22. Rh2 {[%emt 0:11:26]} axb3 {[%emt 0:00:15]} 23. cxb3 {[%emt 0:00:40]} Rc6 {[%emt 0:00:09]} 24. Ra1 {[%emt 0:01:50]} Rca6 {[%emt 0:00:40]} 25. Rxa6 {[%emt 0:00:41]} Rxa6 {[%emt 0:00:32]} 26. h5 {[%emt 0:03:17]} Bd3 {[%emt 0:02:48]} 27. h6 {[%emt 0:07:16]} Kf8 {[%emt 0:01:04]} 28. Rd2 {[%emt 0:02:29]} Be4 {[%emt 0:02:12]} 29. Bf2 {[%emt 0:04:25]} Ke7 {[%emt 0:06:14]} 30. c4 {[%emt 0:09:17]} Kd7 {[%emt 0:04:31]} 31. Bh4 {[%emt 0:05:49]} Kc6 {[%emt 0:05:53]} 32. Be7 {[%emt 0:10:01]} 1/2-1/2

[Event "GER-chT Youth Countries 2018"]
[Site "Wurzburg"]
[Date "2018.10.05"]
[Round "4"]
[White "Riehle, Marco"]
[Black "Schneider, Jana"]
[Result "1-0"]
[ECO "C44"]
[WhiteElo "2265"]
[BlackElo "2174"]
[Annotator "NA"]
[PlyCount "111"]
[EventDate "2018.10.03"]
[EventType "team-tourn"]
[EventCountry "GER"]
[SourceTitle "playchess.com"]
[Source "ChessBase"]
[SourceQuality "1"]
[TimeControl "40/5400+30:1800+30"]

1. e4 {[%emt 0:00:03]} e5 {[%emt 0:00:00]} 2. Nf3 {[%emt 0:00:43]} Nc6 {[%emt 0:00:00]} 3. d4 {[%emt 0:00:40]} exd4 {[%emt 0:00:06]} 4. Bc4 {[%emt 0:00:05]} Bc5 {[%emt 0:00:15]} 5. O-O {[%emt 0:00:36]} d6 {[%emt 0:00:40]} 6. c3 {[%emt 0:00:56]} Bg4 {[%emt 0:05:51]} 7. Qb3 {[%emt 0:01:21] LiveBook: 24 Games} Qd7 {[%emt 0:02:57]} 8. Bxf7+ $11 {[%emt 0:01:20]} (8. Qxb7 $2 Rb8 $17) 8... Kf8 {[%emt 0:10:21]} 9. Bxg8 {[%emt 0:07:09]} Rxg8 {[%emt 0:06:52]} 10. cxd4 {[%emt 0:02:00]} Nxd4 {[%emt 0:02:10]} 11. Nxd4 {[%emt 0:00:35]} Bxd4 {[%emt 0:00:06]} 12. Qxb7 {[%emt 0:00:43]} Re8 {[%emt 0:00:57]} 13. Be3 {[%emt 0:03:51]} Bb6 {[%emt 0:02:16]} 14. Bxb6 {[%emt 0:03:40]} axb6 {[%emt 0:00:20]} 15. Nc3 {[%emt 0:00:38]} Be6 {[%emt 0:01:58]} 16. Rac1 {[%emt 0:03:31]} Re7 {[%emt 0:02:00]} 17. Rfe1 {[%emt 0:06:33]} g5 {[%emt 0:08:17]} 18. Re3 {[%emt 0:04:09]} Rgg7 {[%emt 0:01:27]} 19. Nd5 {[%emt 0:02:14]} Bxd5 {[%emt 0:00:44]} 20. Qxd5 {[%emt 0:00:07]} h6 {[%emt 0:05:28]} 21. Rcc3 {[%emt 0:09:04]} Rgf7 {[%emt 0:03:27]} 22. Rf3 {[%emt 0:01:44]} Kg7 {[%emt 0:06:11]} 23. h3 {[%emt 0:04:44]} Qa4 {[%emt 0:04:37]} 24. Rxf7+ {[%emt 0:05:33]} Rxf7 {[%emt 0:00:15]} 25. a3 {[%emt 0:00:47]} Re7 {[%emt 0:05:09]} 26. h4 {[%emt 0:02:23]} gxh4 {[%emt 0:04:02]} 27. Rc4 {[%emt 0:03:13]} Qa5 {[%emt 0:03:51]} 28. Qxa5 {[%emt 0:01:17]} bxa5 {[%emt 0:00:07]} 29. Kh2 {[%emt 0:00:27]} Kg6 {[%emt 0:00:48]} 30. Kh3 {[%emt 0:00:54]} Kg5 {[%emt 0:03:01]} 31. f3 {[%emt 0:01:10]} c5 {[%emt 0:03:30]} 32. Ra4 {[%emt 0:01:38]} Rb7 {[%emt 0:00:28]} 33. Rxa5 {[%emt 0:00:24]} Rxb2 {[%emt 0:00:12]} 34. e5 {[%emt 0:00:07]} Rb1 {[%emt 0:10:04]} 35. Kh2 {[%emt 0:00:34]} d5 {[%emt 0:04:06]} 36. Rxc5 {[%emt 0:02:24]} d4 {[%emt 0:00:05]} 37. Rd5 {[%emt 0:12:51]} Rd1 {[%emt 0:00:24]} 38. e6+ {[%emt 0:00:11]} Kf6 {[%emt 0:00:06]} 39. Re5 {[%emt 0:00:02]} Ke7 {[%emt 0:00:59]} 40. f4 {[%emt 0:00:14]} d3 {[%emt 0:04:06]} 41. f5 {[%emt 0:31:20]} d2 {[%emt 0:31:14]} 42. Rd5 {[%emt 0:01:22]} Kf6 {[%emt 0:00:00]} 43. a4 {[%emt 0:00:00]} Ke7 {[%emt 0:00:00]} 44. a5 {[%emt 0:00:00]} Rf1 {[%emt 0:00:00]} 45. Rxd2 {[%emt 0:00:00]} Rxf5 {[%emt 0:00:00]} 46. Ra2 {[%emt 0:00:00]} Kxe6 {[%emt 0:00:00]} 47. a6 {[%emt 0:00:00]} Rf8 {[%emt 0:00:00]} 48. a7 {[%emt 0:00:00]} Ra8 {[%emt 0:00:00]} 49. Kh3 {[%emt 0:00:00]} Kf5 {[%emt 0:00:00]} 50. Kxh4 {[%emt 0:00:00]} Kg6 {[%emt 0:00:00]} 51. g4 {[%emt 0:00:00]} Kg7 {[%emt 0:00:00]} 52. Kh5 {[%emt 0:00:00]} Kf6 {[%emt 0:00:00]} 53. Ra5 {[%emt 0:00:00]} Kg7 {[%emt 0:00:00]} 54. Ra6 {[%emt 0:00:00]} Kg8 {[%emt 0:00:00]} 55. Kxh6 {[%emt 0:00:00]} Kf7 {[%emt 0:00:00]} 56. Kg5 {[%emt 0:00:00]} 1-0

[Event "GER-chT Youth Countries 2018"]
[Site "Wurzburg"]
[Date "2018.10.05"]
[Round "4"]
[White "Roseneck, Jonas"]
[Black "Yankelevich, Michael"]
[Result "1-0"]
[ECO "B42"]
[WhiteElo "2262"]
[BlackElo "1961"]
[Annotator "NA"]
[PlyCount "157"]
[EventDate "2018.10.03"]
[EventType "team-tourn"]
[EventCountry "GER"]
[SourceTitle "playchess.com"]
[Source "ChessBase"]
[SourceQuality "1"]
[TimeControl "40/5400+30:1800+30"]

1. e4 {[%emt 0:00:00]} c5 {[%emt 0:00:00]} 2. Nf3 {[%emt 0:00:00]} e6 {[%emt 0:00:17]} 3. d4 {[%emt 0:00:00]} cxd4 {[%emt 0:00:03]} 4. Nxd4 {[%emt 0:00:00]} a6 {[%emt 0:00:05]} 5. Bd3 {[%emt 0:00:38]} Bc5 {[%emt 0:01:51]} 6. Nb3 {[%emt 0:00:04]} Ba7 7. Nc3 {[%emt 0:02:54]} Nc6 {[%emt 0:00:58] LiveBook: 231 Partien} 8. Qe2 {[%emt 0:00:06]} Qc7 {[%emt 0:01:29]} 9. Be3 {[%emt 0:00:44]} Bxe3 {[%emt 0:04:23]} 10. Qxe3 {[%emt 0:00:07]} b5 $14 {[%emt 0:00:40]} 11. f4 {[%emt 0:11:25]} d6 {[%emt 0:03:39]} 12. Qg3 {[%emt 0:13:18]} g6 {[%emt 0:05:13]} 13. O-O {[%emt 0:02:50]} Bb7 {[%emt 0:01:52]} 14. Kh1 {[%emt 0:00:44]} O-O-O {[%emt 0:01:47]} 15. a4 {[%emt 0:07:12]} b4 {[%emt 0:01:50]} 16. Na2 {[%emt 0:02:21]} Kb8 {[%emt 0:06:23]} 17. Qe1 {[%emt 0:08:47]} a5 {[%emt 0:05:36]} 18. c3 {[%emt 0:00:26]} Qb6 {[%emt 0:01:17]} 19. cxb4 {[%emt 0:04:42]} Nxb4 {[%emt 0:01:23]} 20. Nxb4 {[%emt 0:01:59]} Qxb4 {[%emt 0:00:57]} 21. Nxa5 {[%emt 0:00:02]} Qxe1 {[%emt 0:00:17]} 22. Rfxe1 {[%emt 0:00:18]} Ne7 {[%emt 0:00:23]} 23. Ra3 {[%emt 0:04:21]} Ka7 {[%emt 0:03:33]} 24. b4 {[%emt 0:02:10]} d5 {[%emt 0:03:30]} 25. e5 {[%emt 0:06:00]} Rc8 {[%emt 0:00:27]} 26. b5 {[%emt 0:06:22]} Rc5 {[%emt 0:02:27]} 27. Kg1 {[%emt 0:06:03]} Rhc8 {[%emt 0:01:47]} 28. Rb1 {[%emt 0:04:11]} Rc1+ {[%emt 0:01:08]} 29. Rxc1 {[%emt 0:00:37]} Rxc1+ {[%emt 0:00:09]} 30. Kf2 {[%emt 0:00:28]} Ba8 {[%emt 0:01:10]} 31. Ke3 {[%emt 0:03:02]} Nf5+ {[%emt 0:05:28]} 32. Bxf5 {[%emt 0:03:59]} gxf5 {[%emt 0:00:43]} 33. Kd3 {[%emt 0:00:24]} Kb6 {[%emt 0:00:49]} 34. Nb3 {[%emt 0:00:34]} Rc4 {[%emt 0:00:14]} 35. g3 {[%emt 0:02:49]} Bb7 {[%emt 0:01:14]} 36. Nd2 {[%emt 0:01:04]} Rc8 {[%emt 0:00:29]} 37. Nf3 {[%emt 0:04:14]} h6 {[%emt 0:01:07]} 38. Nd2 {[%emt 0:02:42]} Ka5 {[%emt 0:02:02]} 39. Ra2 {[%emt 0:01:20]} Kb6 {[%emt 0:01:08]} 40. Nb3 {[%emt 0:00:29]} Rc4 {[%emt 0:00:18]} 41. Nd2 {[%emt 0:03:57]} Rc8 {[%emt 0:02:09]} 42. Rc2 {[%emt 0:01:15]} Ra8 {[%emt 0:00:14]} 43. Ra2 {[%emt 0:01:48]} Rc8 {[%emt 0:00:06]} 44. Nb1 {[%emt 0:02:43]} Ka5 {[%emt 0:03:02]} 45. Nc3 {[%emt 0:00:19]} Rc4 {[%emt 0:00:36]} 46. Rb2 {[%emt 0:00:18]} Kb6 {[%emt 0:00:23]} 47. Rb3 {[%emt 0:01:08]} Rc8 {[%emt 0:01:19]} 48. Rb4 {[%emt 0:00:08]} Ka5 {[%emt 0:00:21]} 49. Rd4 {[%emt 0:00:10]} Kb6 {[%emt 0:00:29]} 50. Kc2 {[%emt 0:00:37]} Kc5 {[%emt 0:00:32]} 51. Ne2 {[%emt 0:00:23]} Kb6+ {[%emt 0:00:40]} 52. Kb3 {[%emt 0:00:44]} Ka5 {[%emt 0:00:10]} 53. Nc3 {[%emt 0:01:24]} Rc7 {[%emt 0:00:26]} 54. Rb4 {[%emt 0:00:19]} Kb6 {[%emt 0:00:12]} 55. Rd4 {[%emt 0:01:16]} Ka5 {[%emt 0:00:05]} 56. Ne2 {[%emt 0:03:36]} Rc8 {[%emt 0:00:08]} 57. Rb4 {[%emt 0:02:07]} Kb6 {[%emt 0:00:07]} 58. Nc3 {[%emt 0:00:06]} Rc7 {[%emt 0:00:16]} 59. h3 {[%emt 0:02:49]} h5 {[%emt 0:00:59]} 60. Rd4 {[%emt 0:00:07]} Rc8 {[%emt 0:00:18]} 61. Kb4 {[%emt 0:00:19]} Rg8 {[%emt 0:00:42]} 62. a5+ {[%emt 0:00:32]} Kc7 {[%emt 0:00:27]} 63. Rd3 {[%emt 0:00:08]} h4 {[%emt 0:00:06]} 64. gxh4 {[%emt 0:00:40]} Rh8 {[%emt 0:00:01]} 65. a6 {[%emt 0:00:38]} Ba8 {[%emt 0:00:14]} 66. Kc5 {[%emt 0:00:04]} Rxh4 {[%emt 0:00:07]} 67. b6+ {[%emt 0:00:05]} Kb8 {[%emt 0:00:02]} 68. Rg3 {[%emt 0:00:05]} Rh8 {[%emt 0:00:12]} 69. Nb5 {[%emt 0:03:04]} Rc8+ {[%emt 0:00:26]} 70. Nc7 {[%emt 0:00:03]} Rh8 {[%emt 0:00:13]} 71. Nxa8 {[%emt 0:00:11]} Kxa8 {[%emt 0:00:04]} 72. Kc6 {[%emt 0:00:02]} Rc8+ {[%emt 0:00:06]} 73. Kd7 {[%emt 0:00:03]} Rb8 {[%emt 0:00:09]} 74. Kc7 {[%emt 0:00:06]} Rh8 {[%emt 0:00:07]} 75. Rb3 {[%emt 0:00:24]} Rb8 {[%emt 0:00:05]} 76. h4 {[%emt 0:00:13]} d4 {[%emt 0:00:14]} 77. h5 {[%emt 0:00:04]} d3 {[%emt 0:00:10]} 78. Rxd3 {[%emt 0:00:04]} f6 {[%emt 0:00:06]} 79. Rd8 {[%emt 0:00:24]} 1-0

[Event "GER-chT Youth Countries 2018"]
[Site "Wurzburg"]
[Date "2018.10.05"]
[Round "4"]
[White "Karsay, Pascal"]
[Black "Pallas, Sebastian"]
[Result "0-1"]
[ECO "A12"]
[WhiteElo "2261"]
[BlackElo "2278"]
[Annotator "NA"]
[PlyCount "68"]
[EventDate "2018.10.03"]
[EventType "team-tourn"]
[EventCountry "GER"]
[SourceTitle "playchess.com"]
[Source "ChessBase"]
[SourceQuality "1"]
[TimeControl "40/5400+30:1800+30"]

1. Nf3 {[%emt 0:00:00]} Nf6 {[%emt 0:00:00]} 2. b3 {[%emt 0:00:00]} g6 {[%emt 0:00:20]} 3. Bb2 {[%emt 0:00:00]} d5 {[%emt 0:01:51]} 4. c4 {[%emt 0:00:05]} c6 {[%emt 0:00:18]} 5. g3 {[%emt 0:00:23]} Bg7 {[%emt 0:00:33]} 6. Bg2 {[%emt 0:00:17]} O-O {[%emt 0:00:27] LiveBook: 1404 Games} 7. O-O {[%emt 0:00:08]} Nbd7 $11 {[%emt 0:03:29]} 8. d4 {[%emt 0:23:05]} Ne4 {[%emt 0:11:21]} 9. Nbd2 {[%emt 0:08:36]} Ndf6 {[%emt 0:00:31]} 10. Ne5 {[%emt 0:04:48]} Qa5 {[%emt 0:12:46]} 11. Nxe4 {[%emt 0:05:46]} Nxe4 {[%emt 0:00:11]} 12. Qc2 {[%emt 0:02:07]} Nf6 {[%emt 0:08:13]} 13. f3 {[%emt 0:10:02]} c5 {[%emt 0:09:28]} 14. Rfd1 {[%emt 0:09:13]} cxd4 {[%emt 0:05:50]} 15. Bxd4 {[%emt 0:03:18]} Be6 {[%emt 0:00:52]} 16. c5 {[%emt 0:05:44]} Rac8 {[%emt 0:03:17]} 17. b4 {[%emt 0:03:12]} Qc7 {[%emt 0:02:42]} 18. Qb2 {[%emt 0:01:43]} Nd7 {[%emt 0:11:24]} 19. Nxd7 {[%emt 0:01:03]} Bxd4+ {[%emt 0:00:06]} 20. Qxd4 {[%emt 0:02:10]} Qxd7 {[%emt 0:00:05]} 21. e4 {[%emt 0:01:28]} Rfd8 {[%emt 0:00:37]} 22. e5 {[%emt 0:00:42]} Qa4 {[%emt 0:04:25]} 23. f4 {[%emt 0:04:11]} a5 {[%emt 0:04:05]} 24. a3 {[%emt 0:01:05]} Bg4 {[%emt 0:03:03]} 25. Rd2 {[%emt 0:02:34]} e6 {[%emt 0:00:27]} 26. Rb1 {[%emt 0:03:34]} Qxa3 {[%emt 0:03:14]} 27. Rd3 {[%emt 0:04:27]} Qa4 {[%emt 0:01:38]} 28. Rdb3 {[%emt 0:00:33]} Bf5 {[%emt 0:00:45]} 29. R1b2 {[%emt 0:00:21]} Qa1+ {[%emt 0:00:50]} 30. Kf2 {[%emt 0:00:10]} a4 {[%emt 0:00:41]} 31. Re3 {[%emt 0:00:38]} a3 {[%emt 0:00:15]} 32. Rd2 {[%emt 0:00:29]} Qxd4 {[%emt 0:00:08]} 33. Rxd4 {[%emt 0:00:03]} a2 {[%emt 0:00:06]} 34. Rd1 {[%emt 0:00:11]} Bb1 {[%emt 0:00:06]} 0-1

[Event "GER-chT Youth Countries 2018"]
[Site "Wurzburg"]
[Date "2018.10.05"]
[Round "4"]
[White "Sieber, Fiona"]
[Black "Muckle, Julius"]
[Result "0-1"]
[ECO "C11"]
[WhiteElo "2246"]
[BlackElo "2348"]
[Annotator "NA"]
[PlyCount "120"]
[EventDate "2018.10.03"]
[EventType "team-tourn"]
[EventCountry "GER"]
[SourceTitle "playchess.com"]
[Source "ChessBase"]
[SourceQuality "1"]
[TimeControl "40/5400+30:1800+30"]

1. e4 {[%emt 0:00:00]} e6 {[%emt 0:00:00]} 2. d4 {[%emt 0:00:00]} d5 {[%emt 0:00:00]} 3. Nc3 {[%emt 0:00:00]} Nf6 {[%emt 0:00:00]} 4. e5 {[%emt 0:00:00]} Nfd7 {[%emt 0:00:00]} 5. f4 {[%emt 0:00:02]} c5 {[%emt 0:00:00]} 6. Nf3 {[%emt 0:00:03]} Nc6 {[%emt 0:00:00]} 7. Be3 {[%emt 0:00:05]} Be7 {[%emt 0:00:00]} 8. Qd2 {[%emt 0:00:04]} O-O {[%emt 0:00:00]} 9. dxc5 {[%emt 0:00:05]} Qa5 {[%emt 0:00:10]} 10. h4 {[%emt 0:00:14]} Bxc5 {[%emt 0:15:48]} 11. Bxc5 {[%emt 0:00:11]} Nxc5 $11 {[%emt 0:00:47]} 12. O-O-O {[%emt 0:00:11] LiveBook: 50 Games} b5 {[%emt 0:25:07]} 13. Bxb5 {[%emt 0:04:35]} Ne4 {[%emt 0:26:35]} 14. Nxe4 {[%emt 0:03:06]} Qxb5 {[%emt 0:00:30]} 15. Nc3 {[%emt 0:07:08]} Qb4 {[%emt 0:05:56]} 16. Nd4 {[%emt 0:23:17]} Rb8 {[%emt 0:03:14]} 17. Ncb5 {[%emt 0:03:11]} Rxb5 {[%emt 0:01:59]} 18. Qxb4 {[%emt 0:00:11]} Rxb4 {[%emt 0:00:05]} 19. Nxc6 {[%emt 0:00:04]} Rxf4 {[%emt 0:00:06]} 20. Rh3 {[%emt 0:12:23]} Bd7 {[%emt 0:02:14]} 21. Nd4 {[%emt 0:03:20]} f6 {[%emt 0:06:49]} 22. Re3 {[%emt 0:06:01]} Rxh4 {[%emt 0:02:27]} 23. exf6 {[%emt 0:00:23]} Rxf6 {[%emt 0:00:07]} 24. Ra3 {[%emt 0:01:40]} Be8 {[%emt 0:03:47]} 25. Rxa7 {[%emt 0:10:58]} Bh5 {[%emt 0:00:11]} 26. Rd3 {[%emt 0:01:29]} e5 {[%emt 0:03:40]} 27. Ra8+ {[%emt 0:09:45]} Kf7 {[%emt 0:00:07]} 28. Ra7+ {[%emt 0:00:26]} Kg8 {[%emt 0:01:26]} 29. Ra8+ {[%emt 0:00:04]} Kf7 {[%emt 0:02:07]} 30. Ra7+ {[%emt 0:04:20]} Kg6 31. Rg3+ {[%emt 0:00:26]} Rg4 {[%emt 0:00:23]} 32. Rxg4+ {[%emt 0:04:59]} Bxg4 {[%emt 0:00:02]} 33. Nf3 {[%emt 0:00:45]} Bxf3 {[%emt 0:00:28]} 34. gxf3 {[%emt 0:00:01]} h5 {[%emt 0:00:06]} 35. Kd2 {[%emt 0:05:03]} Rxf3 {[%emt 0:00:37]} 36. b4 {[%emt 0:00:58]} h4 {[%emt 0:00:40]} 37. Ke2 {[%emt 0:00:51]} Rc3 {[%emt 0:01:12]} 38. b5 {[%emt 0:00:37]} h3 {[%emt 0:00:16]} 39. Kf2 {[%emt 0:01:07]} Rxc2+ {[%emt 0:00:05]} 40. Kg1 {[%emt 0:00:03]} Rb2 {[%emt 0:00:28]} 41. a4 {[%emt 0:31:10]} d4 {[%emt 0:30:27]} 42. Rd7 {[%emt 0:00:00]} Ra2 {[%emt 0:00:00]} 43. b6 {[%emt 0:00:00]} Rxa4 {[%emt 0:00:00]} 44. Rd5 {[%emt 0:00:00]} Kf5 {[%emt 0:00:00]} 45. Rb5 {[%emt 0:00:00]} Ra8 {[%emt 0:00:00]} 46. b7 {[%emt 0:00:00]} Rb8 {[%emt 0:00:00]} 47. Kh2 {[%emt 0:00:00]} Ke4 {[%emt 0:00:00]} 48. Kxh3 {[%emt 0:00:00]} d3 {[%emt 0:00:00]} 49. Kg2 {[%emt 0:00:00]} d2 {[%emt 0:00:00]} 50. Rb1 {[%emt 0:00:00]} Rxb7 {[%emt 0:00:00]} 51. Rxb7 {[%emt 0:00:00]} d1=Q {[%emt 0:00:00]} 52. Rxg7 {[%emt 0:00:00]} Qf3+ {[%emt 0:00:00]} 53. Kh2 {[%emt 0:00:00]} Ke3 {[%emt 0:00:00]} 54. Kg1 {[%emt 0:00:00]} e4 {[%emt 0:00:00]} 55. Ra7 {[%emt 0:00:00]} Qd1+ {[%emt 0:00:00]} 56. Kg2 {[%emt 0:00:00]} Ke2 {[%emt 0:00:00]} 57. Ra2+ {[%emt 0:00:00]} Qd2 {[%emt 0:00:00]} 58. Ra8 {[%emt 0:00:00]} Qg5+ {[%emt 0:00:00]} 59. Kh1 {[%emt 0:00:00]} Kf3 {[%emt 0:00:00]} 60. Rf8+ {[%emt 0:00:00]} Kg3 {[%emt 0:00:00]} 0-1

[Event "GER-chT Youth Countries 2018"]
[Site "Wurzburg"]
[Date "2018.10.05"]
[Round "4"]
[White "Kuznecovs, Nikita"]
[Black "Herbrig, Alexander"]
[Result "1-0"]
[ECO "A05"]
[WhiteElo "2226"]
[BlackElo "2277"]
[Annotator "NA"]
[PlyCount "83"]
[EventDate "2018.10.03"]
[EventType "team-tourn"]
[EventCountry "GER"]
[SourceTitle "playchess.com"]
[Source "ChessBase"]
[SourceQuality "1"]
[TimeControl "40/5400+30:1800+30"]

1. Nf3 {[%emt 0:00:00]} Nf6 {[%emt 0:00:00]} 2. e3 {[%emt 0:00:00]} d5 {[%emt 0:01:26]} 3. c4 {[%emt 0:00:00]} g6 {[%emt 0:04:58]} 4. cxd5 {[%emt 0:00:37]} Nxd5 {[%emt 0:02:28]} 5. d4 {[%emt 0:00:15]} Bg7 {[%emt 0:00:24]} 6. Be2 {[%emt 0:03:04]} O-O {[%emt 0:03:46]} 7. e4 {[%emt 0:00:10]} Nb6 $11 {[%emt 0:00:25] LiveBook: 51 Games} 8. h3 {[%emt 0:07:39]} Nc6 {[%emt 0:10:26]} 9. Be3 {[%emt 0:03:07]} f5 {[%emt 0:12:38]} 10. e5 {[%emt 0:07:32]} Be6 {[%emt 0:08:30]} 11. Nc3 {[%emt 0:15:03]} f4 {[%emt 0:12:38]} 12. Bc1 {[%emt 0:23:46]} Bd5 {[%emt 0:02:55]} 13. Nxd5 {[%emt 0:14:09]} Qxd5 {[%emt 0:00:29]} 14. Qb3 {[%emt 0:00:24]} Rad8 {[%emt 0:03:59]} 15. Bd2 {[%emt 0:01:06]} e6 {[%emt 0:07:21]} 16. Bc3 {[%emt 0:02:27]} a6 {[%emt 0:05:44]} 17. O-O {[%emt 0:01:44]} Qxb3 {[%emt 0:02:11]} 18. axb3 {[%emt 0:00:03]} Nd5 {[%emt 0:00:11]} 19. Ng5 {[%emt 0:02:02]} f3 {[%emt 0:04:47]} 20. Bxf3 {[%emt 0:00:38]} Nf4 {[%emt 0:00:43]} 21. Bxc6 {[%emt 0:01:20]} bxc6 {[%emt 0:00:18]} 22. Rxa6 {[%emt 0:00:21]} h6 {[%emt 0:00:32]} 23. Nf3 {[%emt 0:00:51]} c5 {[%emt 0:02:09]} 24. dxc5 {[%emt 0:00:37]} Rd5 {[%emt 0:01:48]} 25. Rc6 {[%emt 0:01:09]} Rf7 {[%emt 0:00:04]} 26. Ra1 {[%emt 0:02:54]} Nd3 {[%emt 0:01:37]} 27. b4 {[%emt 0:02:47]} Nxe5 {[%emt 0:03:02]} 28. Nxe5 {[%emt 0:00:11]} Bxe5 {[%emt 0:00:09]} 29. Rxe6 {[%emt 0:03:03]} Bd4 {[%emt 0:01:37]} 30. Bxd4 {[%emt 0:01:43]} Rxd4 {[%emt 0:00:01]} 31. Rxg6+ {[%emt 0:00:02]} Kh7 {[%emt 0:00:26]} 32. Raa6 {[%emt 0:03:12]} Rd1+ {[%emt 0:00:16]} 33. Kh2 {[%emt 0:00:02]} Rxf2 {[%emt 0:00:09]} 34. Rxh6+ {[%emt 0:00:05]} Kg7 {[%emt 0:00:08]} 35. Rag6+ {[%emt 0:00:10]} Kf7 {[%emt 0:00:11]} 36. Rc6 {[%emt 0:00:43]} Kg7 {[%emt 0:00:03]} 37. Rhg6+ {[%emt 0:00:17]} Kf7 {[%emt 0:00:29]} 38. Rg3 {[%emt 0:00:22]} Rxb2 {[%emt 0:00:18]} 39. Rxc7+ {[%emt 0:00:18]} Ke6 {[%emt 0:00:04]} 40. Rg4 {[%emt 0:01:50]} Rdb1 {[%emt 0:00:36]} 41. Rc6+ {[%emt 0:33:30]} Kf5 {[%emt 0:30:28]} 42. Rc8 {[%emt 0:00:00]} 1-0